Cogmind - Beta 9.6 @@@ ROGUE MODE // 2020.09.07 @ 19:24:40 Player: Calanor Result: Destroyed by G-34 Mercenary with Small Laser Performance ------------- Evolutions (1) 500 Regions Visited (2) 400 Robots Destroyed (82) 410 Value Destroyed (1372) 1372 Prototype IDs (1) 20 Alien Tech Used (0) 0 Bonus (16) 16 TOTAL SCORE: 2718 Bonus ------- High Alert Combat Kills 16 Cogmind --------- Core Integrity 0/400 Matter 288/300 Energy 268/280 System Corruption 0% Temperature Cool (4) Movement Walking (120) Location -9/Materials Parts ------- > --- POWER (1) -------- Heavy Ion Engine > --- PROPULSION (3) --- Aluminum Leg Aluminum Leg Improved Aluminum Leg > --- UTILITY (3) ------ Medium Storage Unit Medium Storage Unit Shield Generator > --- WEAPON (2) ------- Heavy Assault Rifle Heavy Assault Rifle > --- INVENTORY (12) --- Heavy Ion Engine Heavy Ion Engine Heavy Ion Engine Heavy Ion Engine Improved Treads Transport Network Coupler Recalibrator Heavy Assault Rifle Heavy Assault Rifle Grenade Launcher Mining Laser Peak State ------------ > --- POWER ------------ Light Nuclear Core > --- PROPULSION ------- Aluminum Leg Improved Aluminum Leg Improved Aluminum Leg > --- UTILITY ---------- Small Storage Unit Medium Storage Unit Recalibrator > --- WEAPON ----------- Heavy EM Pulse Gun Heavy EM Pulse Gun > --- INVENTORY -------- Terrain Scanner Heavy Assault Rifle Heavy Assault Rifle Heavy Assault Rifle Grenade Launcher Mining Laser [Rating: 18] Favorites ----------- Power Ion Engine Engine Ion Engine Power Core Light Nuclear Core Propulsion Improved Aluminum Leg Leg Improved Aluminum Leg Wheel Compact Wheel Utility Medium Storage Unit Device Improved Terrain Scanner Storage Medium Storage Unit Protection Light Armor Plating Weapon Heavy Assault Rifle Energy Gun Heavy EM Pulse Gun Ballistic Gun Heavy Assault Rifle Launcher Grenade Launcher Special Weapon Mining Laser Impact Weapon Hammer Slashing Weapon Katana Build | -11 -10 -9 ------- Run | Scr Mat Mat Slots Evolved 2 | . . 2 Power . | . . . Propulsion 1 | . . 1 Utility 1 | . . 1 Weapon . | . . . Parts Attached 59 | 8 15 36 Power 7 | 1 2 4 Engine 5 | 1 2 2 Core 2 | . . 2 Reactor . | . . . Propulsion 17 | 3 3 11 Treads . | . . . Leg 14 | . 3 11 Wheel 3 | 3 . . Hover . | . . . Flight . | . . . Utility 11 | 2 2 7 Device 5 | 1 . 4 Storage 5 | 1 1 3 Processor . | . . . Hackware . | . . . Protection 1 | . 1 . Artifact . | . . . Weapon 24 | 2 8 14 Energy Gun 9 | . 4 5 Energy Cannon . | . . . Ballistic Gun 10 | 2 4 4 Ballistic Cannon . | . . . Launcher 1 | . . 1 Special Weapon 1 | . . 1 Impact Weapon 2 | . . 2 Slashing Weapon 1 | . . 1 Piercing Weapon . | . . . Special Melee Weapon . | . . . Unidentified Prototypes 1 | . . 1 Parts Lost 11 | . . 11 Power 2 | . . 2 Propulsion 4 | . . 4 Utility 3 | . . 3 Weapon 2 | . . 2 Highest Loss Streak 5 | . . 5 Average Slot Usage (%) 95 | . 99 90 Engine 9 | . 14 3 Core 2 | . . 6 Leg 28 | . 27 28 Device 10 | . 13 5 Storage 17 | . 14 21 Protection 1 | . . 2 Energy Gun 8 | . 7 9 Ballistic Gun 14 | . 19 8 Impact Weapon 1 | . . 2 Naked Turns . | . . . Heaviest Build 32 | 12 22 32 Greatest Support 39 | 32 32 39 Greatest Overweight (x) 5 | . . 5 Average Overweight (x) . | . . . Largest Inventory Capacity 12 | 6 8 12 Average Capacity 8 | 5 7 10 Most Carried 11 | 4 8 11 Average Carried 6 | 2 6 7 Final Capacity 12 | 6 8 12 Final Carried 11 | 4 8 11 Class Distribution -------------------- 89% | Mutant 10% | Scavenger-Mutant Dominant Class ---------------- Mutant | -10/Materials Mutant | -9/Materials Resources | -11 -10 -9 ----------- Run | Scr Mat Mat Matter Collected 1150 | 317 306 527 Remotely . | . . . Salvage Created 2507 | 144 1017 1346 Parts 184 | 9 75 100 Haulers Intercepted 3 | . 2 1 Recyclers Shooed 4 | . 3 1 Parts Field Recycled . | . . . Retrieved Matter . | . . . Parts Self-Destructed . | . . . Prevented . | . . . Kills | -11 -10 -9 ------- Run | Scr Mat Mat Combat Hostiles Destroyed 37 | . 11 26 Melee 1 | . . 1 Guns 32 | . 11 21 AOE 4 | . . 4 Classes Destroyed 12 | 3 5 4 Worker 16 | 2 9 5 Builder 11 | . 3 8 Tunneler 3 | 1 1 1 Hauler 3 | . 2 1 Recycler 4 | 1 3 . Mechanic 1 | . . 1 Operator 1 | . . 1 Watcher 6 | . 3 3 Swarmer 9 | . 5 4 Grunt 25 | . 6 19 Duelist 2 | . . 2 Sentry 1 | . . 1 Best Kill Streak 13 | 2 5 13 Combat Bots Only 6 | . 3 6 Max Kills in Single Turn 4 | 1 2 4 Gunslinging 1 | . 1 1 Exploded 2 | . . 2 Melee 1 | . . 1 Uniques/NPCs Destroyed . | . . . Combat | -11 -10 -9 -------- Run | Scr Mat Mat Damage Taken 2117 | . 538 1579 Core 493 | . 88 405 Absorbed by Shields 66 | . . 66 Core Remaining (%) 82 | 100 64 . Volleys Fired 212 | 22 101 89 Largest 2 | 2 2 2 Hottest 112 | 40 112 100 Shots Fired 394 | 37 202 155 Gun 383 | 37 202 144 Cannon . | . . . Launcher 1 | . . 1 Special 10 | . . 10 Kinetic 223 | 37 124 62 Thermal 88 | . 78 10 Explosive 1 | . . 1 Electromagnetic 82 | . . 82 Robot Hit Streak 13 | 5 11 13 Robot Miss Streak 7 | 3 4 7 Penetration Max . | . . . Secondary Targets 5 | . 2 3 Max Gunslinging Chain 1 | . 1 1 Shots Hit Robots 225 | 17 108 100 Core Hits 118 | 9 53 56 Critical Hits 2 | . 1 1 Critical Kills . | . . . Critical Parts Destroyed 2 | . 1 1 Melee Attacks 24 | . . 24 Impact 9 | . . 9 Slashing 15 | . . 15 Piercing . | . . . Sneak Attacks 1 | . . 1 Combat Hostiles . | . . . Follow-up Attacks . | . . . Damage Inflicted 3886 | 131 1184 2571 Guns 2705 | 131 1184 1390 Cannons . | . . . Explosions 646 | . . 646 Melee 463 | . . 463 Ramming . | . . . Kinetic 1328 | 131 697 500 Thermal 775 | . 487 288 Explosive 430 | . . 430 Electromagnetic 890 | . . 890 Impact 165 | . . 165 Slashing 298 | . . 298 Piercing . | . . . Highest Corruption 2 | . 2 . Average Corruption 2 | . 2 . Corruption Purged . | . . . Overload Shots . | . . . Overflow Damage 36 | . . 36 Projectiles . | . . . Explosions . | . . . Melee 36 | . . 36 Knockbacks 3 | . . 3 Impact 3 | . . 3 Kinetic . | . . . Secondary . | . . . Self-Inflicted Damage 20 | . . 20 Shots 1 | . . 1 Rammed . | . . . Targets Rammed . | . . . Kicked . | . . . Crushed . | . . . Highest Temperature 306 | . 306 279 Average Temperature 100 | . 109 90 Received Heat Transfer 535 | . 186 349 Effects 3 | . 3 . Interference 3 | . 3 . Siege Activations . | . . . Robots Corrupted . | . . . Combat Hostiles . | . . . Parts Fried 3 | . . 3 Impact Corruptions 1 | . . 1 Robots Melted . | . . . Combat Hostiles . | . . . Parts Melted 6 | . 5 1 Heat Transferred 1708 | . 1258 450 Parts Sabotaged . | . . . Parts Stolen . | . . . Parts Stripped . | . . . Power Chain Reactions 4 | . . 4 Missiles Intercepted . | . . . Alert | -11 -10 -9 ------- Run | Scr Mat Mat Peak Influence 464 | 20 190 464 Average Influence 126 | 10 90 187 Maximum Alert Level 2 | . . 2 Low Security (%) 78 | 100 100 47 Level 1 20 | . . 48 Level 2 1 | . . 3 Level 3 . | . . . Level 4 . | . . . Level 5 . | . . . High Security . | . . . Max Security . | . . . Squads Dispatched 7 | . 3 4 Investigation 3 | . 1 2 Extermination . | . . . Reinforcement 4 | . 2 2 Assault . | . . . Garrison . | . . . Intercept . | . . . Construction Impeded 1 | . . 1 Haulers Reinforced . | . . . Stealth | -11 -10 -9 --------- Run | Scr Mat Mat Distress Signals 2 | . 1 1 Communications Jammed . | . . . Distress Signals . | . . . Times Spotted 64 | . 26 38 Peak Tracking Total 7 | . 5 7 Tactical Retreats 4 | . 1 3 Traps | -11 -10 -9 ------- Run | Scr Mat Mat Traps Triggered 3 | . 3 . Indirectly . | . . . Trap Hack Attempts . | . . . Triggered . | . . . Disarmed . | . . . Reprogrammed . | . . . Reused . | . . . Traps Extracted . | . . . Installed . | . . . Triggered . | . . . Machines | -11 -10 -9 ---------- Run | Scr Mat Mat Machines Disabled 2 | . . 2 Max in Single Turn 2 | . . 2 Machines Sabotaged . | . . . Garrisons Compromised . | . . . Overloaded Fab Kills . | . . . Fab Network Shutdowns . | . . . Hacking | -11 -10 -9 --------- Run | Scr Mat Mat Machines Accessed 11 | . 7 4 Terminals 8 | . 5 3 Fabricators . | . . . Repair Stations 1 | . . 1 Recycling Units 2 | . 2 . Scanalyzers . | . . . Garrison Access . | . . . Total Hacks 32 | . 18 14 Successful 18 | . 8 10 Failed 14 | . 10 4 Catastrophic 1 | . . 1 Database Lockouts . | . . . Manual . | . . . Terminals 24 | . 14 10 Fabricators . | . . . Repair Stations 4 | . . 4 Recycling Units 4 | . 4 . Scanalyzers . | . . . Garrison Access . | . . . Terminal Hacks 11 | . 5 6 Record 2 | . . 2 Emergency Access Points 1 | . 1 . Terminal Index 1 | . . 1 Alert Level 2 | . 1 1 Locate Traps 1 | . . 1 Dispatch Records 1 | . 1 . Reinforcement Status 1 | . 1 . Recall Investigation 1 | . . 1 Registered Components 1 | . 1 . Fabricator Hacks . | . . . Repair Station Hacks 4 | . . 4 Scan Component 2 | . . 2 Repair 2 | . . 2 Recycling Unit Hacks 3 | . 3 . Report Inventory 2 | . 2 . Retrieve Components 1 | . 1 . Scanalyzer . | . . . Garrison Access Hacks . | . . . Unauthorized Hacks . | . . . Terminals . | . . . Fabricators . | . . . Repair Stations . | . . . Recycling Units . | . . . Scanalyzers . | . . . Garrison Access . | . . . Data Cores Recovered . | . . . Used . | . . . Hacking Detections 8 | . 4 4 Full Trace Events 4 | . 2 2 Feedback Events . | . . . Feedback Blocked . | . . . Robot Schematics Acquired . | . . . Robots Built . | . . . Matter . | . . . Time . | . . . Total Robot Build Rating . | . . . Part Schematics Acquired . | . . . Parts Built . | . . . Matter . | . . . Time . | . . . Total Part Build Rating . | . . . Parts Repaired 2 | . . 2 Time 64 | . . 64 Parts Recycled . | . . . Recycled Matter . | . . . Retrieved Matter . | . . . Retrieved Components 9 | . 9 . Parts Scanalyzed . | . . . Part Schematics Acquired . | . . . Parts Damaged . | . . . Bothacking | -11 -10 -9 ------------ Run | Scr Mat Mat Used RIF Installer . | . . . Robots Hacked . | . . . Non-combat . | . . . Combat . | . . . Robot Hacks Applied . | . . . Relay Couplers Released . | . . . Robots Rewired . | . . . Allies Hacked . | . . . Hacks Repelled . | . . . Allies | -11 -10 -9 -------- Run | Scr Mat Mat Total Allies . | . . . Largest Group . | . . . Highest-Rated Group . | . . . Highest-Rated Ally . | . . . Total Orders . | . . . Ally Attacks . | . . . Total Damage . | . . . Kills . | . . . Allies Corrupted . | . . . Allies Melted . | . . . Intel | -11 -10 -9 ------- Run | Scr Mat Mat Robot Analysis Total . | . . . Derelict Logs Recovered . | . . . Drone Launches . | . . . Drone Recoveries . | . . . Exploration | -11 -10 -9 ------------- Run | Scr Mat Mat Turns Passed 3027 | 200 1555 1272 Spaces Moved 1713 | 137 968 608 Core 9 | 6 . 3 Treads . | . . . Legs 1565 | . 960 605 Wheels 139 | 131 8 . Hover . | . . . Flight . | . . . Fastest Speed 50 | 50 100 120 Average Speed 118 | 94 119 121 Slowest Speed 300 | 100 120 300 Overloaded Moves . | . . . Propulsion Burnouts . | . . . Robots Hopped . | . . . Cave-ins Triggered . | . . . Exploration Rate (%) 48 | 7 95 43 Regions Visited 2 Branch Regions . Pre-discovered Areas . | . . . Known Exits Taken . | . . . Unknown Exits Taken 2 | 1 1 . Scrap Searched . | . . . Spaces Dug 6 | . . 6 Terrain Destroyed 46 | . . 46 Melee . | . . . Projectile 6 | . . 6 AOE 40 | . . 40 Actions | -11 -10 -9 --------- Run | Scr Mat Mat Total 2288 | 177 1185 926 Wait 193 | . 61 132 Move 1711 | 136 967 608 Hop . | . . . Pick Up 49 | 11 17 21 Fast Attach 10 | . 5 5 Attach 19 | 7 1 11 Detach 4 | . 3 1 Swap 30 | 1 9 20 Drop 36 | . 21 15 Fire 212 | 22 101 89 Melee 24 | . . 24 Ram . | . . . Kick . | . . . Crush . | . . . Escape Stasis . | . . . Rewire . | . . . Trap . | . . . Miscellaneous . | . . . Route ------- -11/Scrapyard -10/Materials (discovered 5 exits: *Mat x3 / [*Min x2]) -9/Materials (discovered 1 exit: [*Min]) History --------- Turn | Location | Event 43 | -11/Scrapyard | Discovered new exit (range 14) 201 | -11/Scrapyard | Entered Materials 318 | -10/Materials | Build established: Mutant 349 | -10/Materials | Discovered new exit (range 16) 763 | -10/Materials | Discovered new exit (range 8) 1433 | -10/Materials | Discovered new exit (range 3) 1551 | -10/Materials | Discovered new exit (range 9) 1732 | -10/Materials | Discovered new exit (range 10) 1756 | -10/Materials | Entered another Materials area 1756 | -9/Materials | Evolved 2 slots: Propulsion x1, Utility x1 1865 | -9/Materials | Discovered new exit (range 12) 2116 | -9/Materials | Core integrity fell below 50% 2122 | -9/Materials | Lost 5 parts (1p3n1w) 2629 | -9/Materials | Core integrity fell below 20% 2636 | -9/Materials | Repaired Imp. Aluminum Leg 2684 | -9/Materials | Lost 5 parts (1p1n2u1w) 2784 | -9/Materials | Repaired Hvy. Assault Rifle 3011 | -9/Materials | Build established: Scavenger-Mutant 3028 | -9/Materials | Destroyed by G-34 Mercenary with Small Laser Last Messages --------------- Dropped Aluminum Leg. U-05 Engineer builds a Wall. K-01 Serf collects debris. U-05 Engineer builds a Wall. K-01 Serf collects debris. Acquired 19 matter. U-05 Engineer lays Concrete. Acquired Hvy. Assault Rifle. K-01 Serf collects debris. U-05 Engineer lays Concrete. K-01 Serf collects debris. U-05 Engineer lays Concrete. K-01 Serf collects debris. U-05 Engineer lays Concrete. U-05 Engineer builds a Wall. K-01 Serf collects debris. U-05 Engineer lays Concrete. U-05 Engineer builds a Wall. K-01 Serf collects debris. G-34 Mercenary destroyed. Map ----- +----------------------------------------------------+ | ?????????# #???????????????######????????????# # | | ?????????# #???????????????# ! #????????????# # | | ?????????# #???????????????# #????????????# + | | ?????????# ################# #????????????# # | | ?????????# + ! #????????????+ # | | ???????###+##### ########### #????????????# # | | ???????# ## #?????????# "" #????????????# # | | ???????# ## #?????????# "T #????????????# # | | ???????# """ ## #?????????# "" #????????????# # | | ???????# """ ## #??######## #???????????## # | | ???????# """ + #??# ###/################ # | | ???????# ## #??# # | | ???????######### #??# # | | ???????????????# #??# # | | ???????????????# ####! """ """ """ # | | ???????????##### !##!# """ """ """ # | | ???????????# !*! ==# """ """ """ + | | ???????????# / #= !![ # | | ???????????# ! !%+% * !! | | ???????????# ! = #! %= ] ![ | | ???????????# = !=# #####################=![= | | ???????????# %! |# #?????#??????# """*#*%%= | | ???????????# " ! *#= ########?????# "R" #%*[# | | ???????????# * %#% # #????## " "*+%==# | | ???????????## ###### # """ #?????#! [==#% *# | | ????????????#### #=##= @ """ #???#?# = **%#[ # | | ???????????????#######%! # """ #?????# == !#[ # | | ?????????????????????#* # #?????########## # | | ?????????????????????# g # #??????????????# # | | ???????????????????? ########?????#?????#??# # | | ??????????????????? #????????#????????????# # | | ?????????????????? k #?????????????????????# # | | ?????????????????##### #?????????????????????# # | | ?????????????????????# #???????????????#?????# # | | ?????????????????????# #?????????"????######## # | | ?????????????????????# +???????????"??# # | | ?????????????????????# #???????????? ?# """ # | | ?????????????????????# ???????????????# """ + | | ?????????????????????# ???????????????# """ # | | ?????????????????????# ???????????????# # | | ?????????????????????? ??????????????## ### | | ????????????????????????????????????????########?? | | ?????????????????????????????????????????##?#????? | | ???????????????????????????????????????????#?????? | | ?????????????????????????????????????????????????? | | ?????????????????????????????????????????????????? | | ?????????????????????????????????????????#??#????? | | ???????????????????????????????????????????##????? | | ???????????????????????????????????????????????? ? | | ??????????????????????????????????????????????? ?? | +----------------------------------------------------+ Best States ------------- Heat Dissipation 28 Energy Generation 14 Energy Capacity 280 Matter Stores 300 Matter Capacity 300 Sight Range 16 Terrain Scan Range 16 Terrain Scan Density 10 Armor Coverage 150 Evasion (%) 42 Item Schematics ----------------- None Robot Schematics ------------------ None Fabricated ------------ Nothing Alien Tech Used ----------------- None Achievements -------------- None Challenges ------------ None Game ------ Seed GlidesysNullPrototype Manual? 0 Play Time 00:59:39 Cumulative 8.2 hours Start 2020.09.07 @ 18:22:08 End 2020.09.07 @ 19:24:40 Sessions 1 Manual Loads 0 Difficulty Rogue Special Mode None Game No. 9 Rogue 9 Adventurer 0 Explorer 0 Win Type - Total 0 Types 0/0/0/0/0/0/0 Lore% 12 Gallery% 8 Achievement% 8 Wizard Run 0 Options --------- ASCII 0 Keyboard 0 Movement Numpad Keybinds 0 Fullscreen 1 Font 24/Terminus Map View 76x50 Tactical HUD 0 Map Filters NONE Filters NONE Steam 1 RUN: 3b454df6-dae8-4b83-97d0-1fa2a7caa649